[Event "58th Akiba Rubinstein B 2022"]
[Site "Polanica-Zdroj"]
[Date "2022.08.15"]
[Round "3.2"]
[White "Zerebiec, Maurycy"]
[Black "Wilk, Aleksander"]
[Result "1/2-1/2"]
[ECO "A11"]
[WhiteElo "1915"]
[BlackElo "1569"]
[Annotator "NA RC"]
[PlyCount "154"]
[EventDate "2022.08.13"]
[EventCountry "POL"]
[SourceTitle "playchess.com"]
[Source "ChessBase"]
[SourceQuality "1"]
[TimeControl "40/5400+30:1800+30"]

1. c4 {[%emt 0:00:01]} c6 {[%emt 0:00:09]} 2. Nc3 {[%emt 0:00:02]} d5 {[%emt 0:00:19]} 3. cxd5 {[%emt 0:00:01]} cxd5 {[%emt 0:00:06]} 4. d4 {[%emt 0:00:01]} Nf6 {[%emt 0:00:06]} 5. Nf3 {[%emt 0:01:23]} Nc6 {[%emt 0:00:08]} 6. Bg5 {[%emt 0:01:06]} Ne4 {[%emt 0:00:23]} 7. Bd2 {[%emt 0:00:01]} Nxc3 {[%emt 0:01:53]} 8. Bxc3 {[%emt 0:00:51]} Bg4 {[%emt 0:03:56]} 9. Ne5 {[%emt 0:01:51]} Bd7 {[%emt 0:02:05]} 10. Qb3 {[%emt 0:06:52]} Nxe5 {[%emt 0:03:23]} 11. dxe5 {[%emt 0:02:50]} Bc6 {[%emt 0:00:07]} 12. e6 {[%emt 0:05:24]} fxe6 {[%emt 0:01:31]} 13. e3 {[%emt 0:00:39]} Qd7 {[%emt 0:08:26]} 14. Qb4 {[%emt 0:14:08]} Qd6 {[%emt 0:07:24]} 15. Qh4 {[%emt 0:01:34]} e5 $11 {[%emt 0:09:27]} 16. Qh5+ {[%emt 0:00:16]} g6 {[%emt 0:00:07]} 17. Qxe5 {[%emt 0:00:16]} Qxe5 {[%emt 0:00:04]} 18. Bxe5 {[%emt 0:00:01]} Rg8 {[%emt 0:00:08]} 19. Bd3 {[%emt 0:02:52]} Bg7 {[%emt 0:00:31]} 20. Bxg7 {[%emt 0:00:12]} Rxg7 {[%emt 0:00:07]} 21. Rc1 {[%emt 0:05:06]} e5 {[%emt 0:03:33]} 22. Rc5 {[%emt 0:00:58]} Ke7 {[%emt 0:02:59]} 23. Kd2 {[%emt 0:09:09]} Kd6 {[%emt 0:01:51]} 24. Rhc1 {[%emt 0:00:10]} Rf8 {[%emt 0:03:56]} 25. f3 {[%emt 0:06:51]} g5 {[%emt 0:02:40]} 26. h3 {[%emt 0:06:14]} h5 {[%emt 0:01:25]} 27. Bb5 {[%emt 0:00:47]} Rc7 {[%emt 0:00:56]} 28. b4 {[%emt 0:03:06]} Rff7 {[%emt 0:01:37]} 29. a4 {[%emt 0:06:50]} a6 {[%emt 0:01:17]} 30. Bxc6 {[%emt 0:00:02]} Rxc6 {[%emt 0:00:07]} 31. Rxc6+ {[%emt 0:00:06]} bxc6 {[%emt 0:00:03]} 32. Rc5 {[%emt 0:00:14]} g4 {[%emt 0:03:09]} 33. hxg4 {[%emt 0:00:37]} hxg4 {[%emt 0:01:51]} 34. Ra5 {[%emt 0:04:03]} gxf3 {[%emt 0:01:23]} 35. gxf3 {[%emt 0:00:01]} Rxf3 {[%emt 0:00:43]} 36. Rxa6 {[%emt 0:00:03]} Rf2+ {[%emt 0:00:14]} 37. Ke1 {[%emt 0:00:18]} Rc2 {[%emt 0:00:39]} 38. Kd1 {[%emt 0:01:05]} Rc4 {[%emt 0:03:58]} 39. b5 {[%emt 0:11:27]} Kc7 {[%emt 0:00:46]} 40. Ra7+ {[%emt 0:00:00]} Kb6 {[%emt 0:00:00]} 41. Ra6+ {[%emt 0:02:54]} Kb7 {[%emt 0:01:07]} 42. Ra5 {[%emt 0:00:36]} Kb6 43. Ra8 {[%emt 0:00:16]} Kb7 {[%emt 0:03:34]} 44. Ra5 {[%emt 0:05:11]} Kb6 {[%emt 0:00:10]} 45. Ra6+ {[%emt 0:00:03]} Kb7 {[%emt 0:00:06]} 46. a5 {[%emt 0:00:33]} Rc5 {[%emt 0:01:11]} 47. Rb6+ {[%emt 0:00:16]} Kc7 {[%emt 0:00:11]} 48. bxc6 {[%emt 0:00:51]} Rxa5 {[%emt 0:00:27]} 49. Rb7+ {[%emt 0:01:18]} Kxc6 {[%emt 0:00:56]} 50. Re7 {[%emt 0:00:12]} Kd6 {[%emt 0:00:36]} 51. Re8 {[%emt 0:00:08]} Ra2 {[%emt 0:02:02]} 52. Rd8+ {[%emt 0:01:01]} Ke6 {[%emt 0:00:13]} 53. Rf8 {[%emt 0:01:48]} Rg2 {[%emt 0:01:59]} 54. Ke1 {[%emt 0:00:13]} Rg7 {[%emt 0:00:26]} 55. Ke2 {[%emt 0:00:31]} Rf7 {[%emt 0:03:45]} 56. Rd8 {[%emt 0:00:14]} Rd7 {[%emt 0:00:28]} 57. Rf8 {[%emt 0:00:06]} e4 {[%emt 0:00:45]} 58. Re8+ {[%emt 0:01:00]} Kd6 {[%emt 0:02:10]} 59. Kd2 {[%emt 0:01:48]} Rg7 {[%emt 0:02:24]} 60. Rd8+ {[%emt 0:00:18]} Ke6 {[%emt 0:00:29]} 61. Re8+ {[%emt 0:01:30]} Kd7 {[%emt 0:02:21]} 62. Rh8 {[%emt 0:01:04]} Rg3 {[%emt 0:01:52]} 63. Rh6 {[%emt 0:00:15]} Rf3 {[%emt 0:01:53]} 64. Ke2 {[%emt 0:00:40]} Rf8 {[%emt 0:00:36]} 65. Kd2 {[%emt 0:00:24]} Rc8 {[%emt 0:00:27]} 66. Rg6 {[%emt 0:02:16]} Rc6 {[%emt 0:00:56]} 67. Rxc6 {[%emt 0:02:35]} Kxc6 {[%emt 0:00:08]} 68. Kc2 {[%emt 0:00:06]} Kb6 {[%emt 0:00:57]} 69. Kb2 {[%emt 0:00:10]} Kb5 {[%emt 0:01:13]} 70. Kb3 {[%emt 0:00:04]} Kc5 {[%emt 0:01:49]} 71. Kc3 {[%emt 0:00:01]} d4+ {[%emt 0:00:23]} 72. exd4+ {[%emt 0:00:03]} Kd5 {[%emt 0:00:04]} 73. Kd2 {[%emt 0:00:12]} Kxd4 {[%emt 0:00:09]} 74. Ke2 {[%emt 0:00:02]} e3 {[%emt 0:00:08]} 75. Ke1 {[%emt 0:00:01]} Kd3 {[%emt 0:00:20]} 76. Kd1 {[%emt 0:00:02]} e2+ {[%emt 0:00:06]} 77. Ke1 {[%emt 0:00:01]} Ke3 {[%emt 0:00:41]} 1/2-1/2

[Event "58th Akiba Rubinstein B 2022"]
[Site "Polanica-Zdroj"]
[Date "2022.08.15"]
[Round "3.3"]
[White "Rzenca, Jerzy"]
[Black "Kossowski, Pawel"]
[Result "1/2-1/2"]
[ECO "C47"]
[WhiteElo "1668"]
[BlackElo "1737"]
[Annotator "NA RC"]
[PlyCount "61"]
[EventDate "2022.08.13"]
[EventCountry "POL"]
[SourceTitle "playchess.com"]
[Source "ChessBase"]
[SourceQuality "1"]
[TimeControl "40/5400+30:1800+30"]

1. e4 {[%emt 0:00:03]} e5 {[%emt 0:00:13]} 2. Nf3 {[%emt 0:00:05]} Nc6 {[%emt 0:00:04]} 3. Nc3 {[%emt 0:00:08]} Nf6 {[%emt 0:00:07]} 4. d4 {[%emt 0:00:06]} exd4 {[%emt 0:00:10]} 5. Nxd4 {[%emt 0:00:09]} Bb4 {[%emt 0:00:08]} 6. Nxc6 {[%emt 0:00:19]} bxc6 {[%emt 0:00:05]} 7. Bd3 {[%emt 0:00:04]} d5 {[%emt 0:00:39]} 8. exd5 {[%emt 0:00:10]} cxd5 {[%emt 0:00:06]} 9. O-O {[%emt 0:00:08]} O-O {[%emt 0:00:58]} 10. Bg5 {[%emt 0:00:38]} c6 {[%emt 0:00:17]} 11. Qf3 {[%emt 0:00:15]} Be7 {[%emt 0:01:18]} 12. Rfe1 {[%emt 0:00:55]} Re8 {[%emt 0:01:17]} 13. h3 {[%emt 0:01:18]} h6 {[%emt 0:00:07]} 14. Bf4 {[%emt 0:00:04]} Be6 {[%emt 0:00:12]} 15. Rad1 {[%emt 0:01:37]} Bd6 {[%emt 0:02:00]} 16. Na4 {[%emt 0:01:04]} Rb8 {[%emt 0:00:50]} 17. b3 {[%emt 0:00:35]} c5 {[%emt 0:00:24]} 18. c4 {[%emt 0:00:03]} d4 {[%emt 0:00:04]} 19. Re2 {[%emt 0:00:09]} Rc8 {[%emt 0:00:10]} 20. Rde1 {[%emt 0:00:06]} Bxf4 {[%emt 0:00:30]} 21. Qxf4 {[%emt 0:00:04]} Bd7 {[%emt 0:00:13]} 22. Bf5 {[%emt 0:00:08]} Rxe2 {[%emt 0:00:22]} 23. Rxe2 {[%emt 0:00:03]} Bxf5 {[%emt 0:00:06]} 24. Qxf5 {[%emt 0:00:04]} Qd7 {[%emt 0:00:17]} 25. Qxd7 {[%emt 0:00:05]} Nxd7 {[%emt 0:00:07]} 26. Kf1 {[%emt 0:00:03]} Kf8 {[%emt 0:00:12]} 27. Nb2 {[%emt 0:00:04]} Re8 {[%emt 0:00:29]} 28. Rxe8+ {[%emt 0:00:01]} Kxe8 {[%emt 0:00:06]} 29. Nd3 {[%emt 0:00:07]} a5 {[%emt 0:00:23]} 30. f4 {[%emt 0:00:06]} f5 {[%emt 0:00:41]} 31. Kf2 {[%emt 0:00:08]} 1/2-1/2

[Event "58th Akiba Rubinstein B 2022"]
[Site "Polanica-Zdroj"]
[Date "2022.08.15"]
[Round "3.4"]
[White "Turek, Michal"]
[Black "Lukasiewicz, Anna"]
[Result "1/2-1/2"]
[ECO "C54"]
[WhiteElo "1681"]
[BlackElo "1954"]
[Annotator "NA RC"]
[PlyCount "90"]
[EventDate "2022.08.13"]
[EventCountry "POL"]
[SourceTitle "playchess.com"]
[Source "ChessBase"]
[SourceQuality "1"]
[TimeControl "40/5400+30:1800+30"]

1. e4 {[%emt 0:00:04]} e5 {[%emt 0:00:14]} 2. Nf3 {[%emt 0:00:12]} Nc6 {[%emt 0:00:12]} 3. Bc4 {[%emt 0:00:12]} Bc5 {[%emt 0:00:24]} 4. c3 {[%emt 0:00:21]} Nf6 {[%emt 0:00:31]} 5. d3 {[%emt 0:00:17]} d6 {[%emt 0:02:02]} 6. a4 {[%emt 0:00:33]} a5 {[%emt 0:02:18]} 7. O-O {[%emt 0:01:25]} O-O {[%emt 0:05:51]} 8. h3 {[%emt 0:01:47]} h6 {[%emt 0:03:56]} 9. Re1 {[%emt 0:01:19]} Bb6 {[%emt 0:06:06]} 10. Nbd2 {[%emt 0:01:38]} Ne7 {[%emt 0:13:39]} 11. Nf1 {[%emt 0:04:00]} Ng6 {[%emt 0:02:36]} 12. Ng3 {[%emt 0:02:05]} c6 {[%emt 0:05:16]} 13. Bb3 {[%emt 0:06:26]} Qc7 {[%emt 0:12:03]} 14. d4 {[%emt 0:03:39]} Bd7 {[%emt 0:02:00]} 15. Be3 {[%emt 0:03:06]} Rad8 {[%emt 0:01:35]} 16. Qc2 {[%emt 0:04:00]} Bc8 {[%emt 0:01:52]} 17. Rad1 $14 {[%emt 0:01:27]} Rfe8 {[%emt 0:03:47]} 18. Kh1 {[%emt 0:14:05]} Be6 {[%emt 0:07:04]} 19. Bxe6 {[%emt 0:01:06]} Rxe6 {[%emt 0:00:16]} 20. Qb3 {[%emt 0:11:33]} exd4 {[%emt 0:03:53]} 21. Nxd4 {[%emt 0:05:52]} Bxd4 {[%emt 0:00:29]} 22. Bxd4 {[%emt 0:00:37]} c5 {[%emt 0:00:13]} 23. Bxf6 {[%emt 0:01:01]} Rxf6 {[%emt 0:00:11]} 24. Rd2 {[%emt 0:02:33]} Re8 {[%emt 0:04:38]} 25. Red1 {[%emt 0:02:55]} Nf4 {[%emt 0:04:51]} 26. Qc4 {[%emt 0:06:22]} b6 {[%emt 0:03:43]} 27. Ne2 {[%emt 0:03:40]} Ng6 {[%emt 0:04:12]} 28. f3 {[%emt 0:02:27]} Re5 {[%emt 0:02:37]} 29. Rd5 {[%emt 0:01:58]} Rxd5 {[%emt 0:00:41]} 30. Qxd5 {[%emt 0:03:10]} Kh7 {[%emt 0:01:24]} 31. c4 {[%emt 0:04:10]} Qc8 {[%emt 0:00:48]} 32. Qd2 {[%emt 0:01:58]} Qe8 {[%emt 0:00:21]} 33. Nc3 {[%emt 0:02:09]} Nf4 {[%emt 0:02:33]} 34. Nd5 {[%emt 0:00:47]} Nxd5 {[%emt 0:00:08]} 35. Qxd5 {[%emt 0:00:08]} Qxa4 {[%emt 0:00:20]} 36. Kh2 {[%emt 0:02:10]} Qb3 {[%emt 0:00:58]} 37. Rd2 {[%emt 0:01:11]} Qb4 {[%emt 0:01:04]} 38. Re2 {[%emt 0:01:35]} Qb3 {[%emt 0:01:35]} 39. Rd2 {[%emt 0:01:35]} Qe3 {[%emt 0:00:18]} 40. Kh1 {[%emt 0:00:00]} Rg6 {[%emt 0:00:00]} 41. Qd3 {[%emt 0:07:18]} Qe1+ {[%emt 0:02:47]} 42. Kh2 {[%emt 0:00:08]} Qg3+ {[%emt 0:05:24]} 43. Kg1 {[%emt 0:00:38]} Kg8 {[%emt 0:03:22]} 44. Kh1 {[%emt 0:03:38]} Qe1+ {[%emt 0:10:02]} 45. Kh2 {[%emt 0:00:06]} Qg3+ 1/2-1/2

[Event "58th Akiba Rubinstein B 2022"]
[Site "Polanica-Zdroj"]
[Date "2022.08.15"]
[Round "3.5"]
[White "Krzyzosiak, Marta"]
[Black "Mielczarek, Daniel"]
[Result "0-1"]
[ECO "B16"]
[WhiteElo "1666"]
[BlackElo "1912"]
[Annotator "NA RC"]
[PlyCount "138"]
[EventDate "2022.08.13"]
[EventCountry "POL"]
[SourceTitle "playchess.com"]
[Source "ChessBase"]
[SourceQuality "1"]
[TimeControl "40/5400+30:1800+30"]

1. e4 {[%emt 0:00:03]} c6 {[%emt 0:00:34]} 2. d4 {[%emt 0:00:10]} d5 {[%emt 0:00:06]} 3. Nc3 {[%emt 0:00:09]} dxe4 {[%emt 0:00:24]} 4. Nxe4 {[%emt 0:00:18]} Nf6 {[%emt 0:00:51]} 5. Nxf6+ {[%emt 0:00:10]} gxf6 {[%emt 0:03:41]} 6. c3 {[%emt 0:13:53]} Bf5 {[%emt 0:03:29]} 7. Bd3 {[%emt 0:01:15]} Bxd3 {[%emt 0:01:34]} 8. Qxd3 {[%emt 0:00:10]} e6 {[%emt 0:00:24]} 9. Bf4 {[%emt 0:05:18]} Bd6 {[%emt 0:00:21]} 10. Bxd6 {[%emt 0:00:56]} Qxd6 {[%emt 0:00:02]} 11. Ne2 $11 {[%emt 0:05:46]} Nd7 {[%emt 0:01:58]} 12. Qg3 {[%emt 0:09:34]} Qd5 {[%emt 0:07:55]} 13. Nf4 {[%emt 0:07:40]} Qe4+ {[%emt 0:02:02]} 14. Qe3 {[%emt 0:01:19]} Qxe3+ {[%emt 0:00:32]} 15. fxe3 {[%emt 0:00:08]} f5 {[%emt 0:00:06]} 16. O-O-O {[%emt 0:02:57]} Rg8 {[%emt 0:00:45]} 17. Rhe1 {[%emt 0:02:53]} Nf6 {[%emt 0:00:21]} 18. Re2 {[%emt 0:04:58]} Ke7 {[%emt 0:03:28]} 19. Nd3 {[%emt 0:06:26]} Ne4 {[%emt 0:11:51]} 20. g3 {[%emt 0:03:01]} h5 {[%emt 0:04:40]} 21. Nf2 {[%emt 0:06:31]} h4 {[%emt 0:09:08]} 22. Nxe4 {[%emt 0:04:42]} fxe4 {[%emt 0:00:02]} 23. Rg1 {[%emt 0:07:44]} Rg4 {[%emt 0:07:15]} 24. Reg2 {[%emt 0:03:41]} Rag8 {[%emt 0:00:54]} 25. Kd2 {[%emt 0:01:38]} hxg3 {[%emt 0:00:31]} 26. Rxg3 {[%emt 0:00:51]} Rxg3 {[%emt 0:00:10]} 27. hxg3 {[%emt 0:00:46]} Rh8 {[%emt 0:00:32]} 28. Rg2 {[%emt 0:01:04]} Kf6 {[%emt 0:02:22]} 29. Rf2+ {[%emt 0:02:58]} Kg6 {[%emt 0:00:23]} 30. g4 {[%emt 0:04:00]} Rh4 {[%emt 0:01:47]} 31. g5 {[%emt 0:02:04]} Rg4 {[%emt 0:04:05]} 32. Rf4 {[%emt 0:01:30]} Rg2+ {[%emt 0:01:00]} 33. Kc1 {[%emt 0:00:53]} Re2 {[%emt 0:00:55]} 34. Rxe4 {[%emt 0:00:29]} Kxg5 {[%emt 0:00:19]} 35. a3 {[%emt 0:00:40]} b6 {[%emt 0:02:50]} 36. Kb1 {[%emt 0:00:44]} a5 {[%emt 0:00:34]} 37. a4 {[%emt 0:00:37]} Kf6 {[%emt 0:00:50]} 38. Rf4+ {[%emt 0:00:21]} Ke7 {[%emt 0:00:24]} 39. e4 {[%emt 0:00:16]} f6 {[%emt 0:00:11]} 40. Rh4 {[%emt 0:00:00]} e5 {[%emt 0:00:00]} 41. dxe5 {[%emt 0:05:49]} fxe5 {[%emt 0:01:53]} 42. Rg4 {[%emt 0:00:59]} Kd6 {[%emt 0:01:01]} 43. Ka2 {[%emt 0:03:16]} Kc5 {[%emt 0:01:22]} 44. Ka3 {[%emt 0:15:42]} b5 {[%emt 0:22:49]} 45. axb5 {[%emt 0:03:28]} cxb5 {[%emt 0:00:13]} 46. Rg8 {[%emt 0:01:02]} Rxe4 {[%emt 0:04:47]} 47. Rc8+ {[%emt 0:00:18]} Kd5 {[%emt 0:00:41]} 48. Rb8 {[%emt 0:01:12]} b4+ {[%emt 0:08:50]} 49. Kb3 {[%emt 0:02:12]} a4+ {[%emt 0:02:09]} 50. Kxa4 {[%emt 0:00:06]} bxc3+ {[%emt 0:00:12]} 51. Kb3 {[%emt 0:00:08]} cxb2 {[%emt 0:00:29]} 52. Kxb2 {[%emt 0:00:05]} Rc4 {[%emt 0:00:19]} 53. Re8 {[%emt 0:01:53]} Kd4 {[%emt 0:00:41]} 54. Kb3 {[%emt 0:00:32]} Rc7 {[%emt 0:01:06]} 55. Kb2 {[%emt 0:00:32]} e4 {[%emt 0:00:08]} 56. Rd8+ {[%emt 0:00:41]} Ke3 {[%emt 0:00:12]} 57. Re8 {[%emt 0:00:17]} Kd3 {[%emt 0:00:07]} 58. Rd8+ {[%emt 0:00:05]} Ke2 {[%emt 0:00:05]} 59. Re8 {[%emt 0:00:16]} e3 {[%emt 0:00:05]} 60. Rf8 {[%emt 0:01:15]} Kd2 {[%emt 0:03:26]} 61. Rd8+ {[%emt 0:00:15]} Ke1 {[%emt 0:00:09]} 62. Re8 {[%emt 0:00:14]} e2 {[%emt 0:00:11]} 63. Rf8 {[%emt 0:00:47]} Rc5 {[%emt 0:02:04]} 64. Rf7 {[%emt 0:00:54]} Kd2 {[%emt 0:00:14]} 65. Rd7+ {[%emt 0:00:20]} Ke3 {[%emt 0:01:18]} 66. Re7+ {[%emt 0:00:24]} Kd3 {[%emt 0:00:21]} 67. Re8 {[%emt 0:01:00]} Rc4 {[%emt 0:00:34]} 68. Rd8+ {[%emt 0:00:19]} Rd4 {[%emt 0:01:17]} 69. Re8 {[%emt 0:00:19]} Kd2 {[%emt 0:00:09]} 0-1

[Event "58th Akiba Rubinstein B 2022"]
[Site "Polanica-Zdroj"]
[Date "2022.08.15"]
[Round "3.6"]
[White "Rogala, Milosz"]
[Black "Szuber, Dawid"]
[Result "1/2-1/2"]
[ECO "B83"]
[WhiteElo "1837"]
[BlackElo "1484"]
[Annotator "NA RC"]
[PlyCount "58"]
[EventDate "2022.08.13"]
[EventCountry "POL"]
[SourceTitle "playchess.com"]
[Source "ChessBase"]
[SourceQuality "1"]
[TimeControl "40/5400+30:1800+30"]

1. e4 c5 2. Nf3 Nc6 3. d4 cxd4 4. Nxd4 Nf6 5. Nc3 d6 6. Be2 e6 7. Be3 Be7 8. g4 h6 9. h3 a6 $11 10. Qd2 Qc7 11. f4 b5 12. Bf3 Bb7 13. Qg2 Rc8 14. g5 hxg5 15. fxg5 Nh5 16. Nxc6 Qxc6 17. O-O g6 18. Rac1 Bd8 19. Qf2 Ng7 20. Bg2 Rc7 21. Bb6 Re7 22. Be3 Nh5 23. a3 Bc7 24. e5 d5 25. Bd4 Ng7 26. Qf6 Rh7 27. Qf2 Nf5 28. Ne2 Rh4 29. c3 Rh5 1/2-1/2

[Event "58th Akiba Rubinstein B 2022"]
[Site "Polanica-Zdroj"]
[Date "2022.08.15"]
[Round "3.7"]
[White "Kowalczyk, Wojciech"]
[Black "Smukowski, Bartosz"]
[Result "1/2-1/2"]
[ECO "B24"]
[WhiteElo "1835"]
[BlackElo "1696"]
[Annotator "NA RC"]
[PlyCount "44"]
[EventDate "2022.08.13"]
[EventCountry "POL"]
[SourceTitle "playchess.com"]
[Source "ChessBase"]
[SourceQuality "1"]
[TimeControl "40/5400+30:1800+30"]

1. e4 {[%emt 0:00:03]} c5 {[%emt 0:00:13]} 2. Nc3 {[%emt 0:00:05]} Nc6 {[%emt 0:00:18]} 3. Bb5 {[%emt 0:00:09]} Nd4 {[%emt 0:00:08]} 4. Nf3 {[%emt 0:00:06]} a6 {[%emt 0:00:07]} 5. Bd3 {[%emt 0:00:23]} e6 {[%emt 0:03:29]} 6. O-O {[%emt 0:02:40]} Nc6 {[%emt 0:02:43]} 7. b3 {[%emt 0:02:54]} d6 {[%emt 0:01:36]} 8. Bb2 {[%emt 0:03:30]} e5 {[%emt 0:00:32]} 9. Nd5 {[%emt 0:06:33]} Nf6 {[%emt 0:02:15]} 10. c3 {[%emt 0:08:12]} Nxd5 {[%emt 0:13:31]} 11. exd5 $11 {[%emt 0:00:06]} Ne7 {[%emt 0:00:11]} 12. Bc2 {[%emt 0:06:01]} g6 {[%emt 0:02:53]} 13. d4 {[%emt 0:15:12]} exd4 {[%emt 0:01:40]} 14. cxd4 {[%emt 0:14:04]} Bg7 {[%emt 0:00:30]} 15. Qc1 {[%emt 0:00:47]} cxd4 {[%emt 0:01:41]} 16. Bxd4 {[%emt 0:04:59]} Bxd4 {[%emt 0:02:01]} 17. Nxd4 {[%emt 0:00:09]} O-O {[%emt 0:01:07]} 18. Qg5 {[%emt 0:05:41]} Nf5 {[%emt 0:10:59]} 19. Qxd8 {[%emt 0:10:14]} Rxd8 {[%emt 0:00:11]} 20. Bxf5 {[%emt 0:03:08]} Bxf5 {[%emt 0:00:09]} 21. Nxf5 {[%emt 0:00:17]} gxf5 {[%emt 0:00:05]} 22. Rac1 {[%emt 0:09:05]} Rac8 1/2-1/2

[Event "58th Akiba Rubinstein B 2022"]
[Site "Polanica-Zdroj"]
[Date "2022.08.15"]
[Round "3.8"]
[White "Ochenduszko, Bartosz"]
[Black "Jaworski, Tymon"]
[Result "0-1"]
[ECO "D37"]
[WhiteElo "1546"]
[BlackElo "1701"]
[Annotator "NA RC"]
[PlyCount "78"]
[EventDate "2022.08.13"]
[EventCountry "POL"]
[SourceTitle "playchess.com"]
[Source "ChessBase"]
[SourceQuality "1"]
[TimeControl "40/5400+30:1800+30"]

1. Nf3 {[%emt 0:00:03]} d5 {[%emt 0:00:20]} 2. d4 {[%emt 0:00:08]} Nf6 {[%emt 0:00:30]} 3. c4 {[%emt 0:01:40]} e6 {[%emt 0:02:13]} 4. Nc3 {[%emt 0:00:18]} Be7 {[%emt 0:03:44]} 5. Bf4 {[%emt 0:03:06]} O-O {[%emt 0:05:26]} 6. e3 {[%emt 0:00:29]} c5 {[%emt 0:03:04]} 7. Bd3 {[%emt 0:02:32]} Nc6 {[%emt 0:05:34]} 8. O-O {[%emt 0:01:14]} cxd4 {[%emt 0:08:01]} 9. exd4 {[%emt 0:00:18]} dxc4 {[%emt 0:02:49]} 10. Bxc4 {[%emt 0:00:12]} Nb4 {[%emt 0:01:01]} 11. Rc1 {[%emt 0:01:50]} a6 {[%emt 0:03:44]} 12. a3 {[%emt 0:01:00]} Nbd5 {[%emt 0:01:57]} 13. Bg3 {[%emt 0:00:39]} Nxc3 {[%emt 0:01:20]} 14. Rxc3 {[%emt 0:00:45]} b5 {[%emt 0:03:33]} 15. Ba2 {[%emt 0:01:23]} Bb7 {[%emt 0:01:36]} 16. Ne5 {[%emt 0:09:01]} Rc8 {[%emt 0:08:49]} 17. Rxc8 {[%emt 0:03:11]} Qxc8 {[%emt 0:00:46]} 18. Re1 {[%emt 0:00:55]} Rd8 {[%emt 0:03:04]} 19. Nxf7 {[%emt 0:00:47]} Kxf7 {[%emt 0:00:30]} 20. Bxe6+ {[%emt 0:00:03]} Qxe6 {[%emt 0:00:19]} 21. Rxe6 {[%emt 0:00:03]} Kxe6 {[%emt 0:00:17]} 22. Be5 {[%emt 0:02:55]} Kf7 {[%emt 0:02:38]} 23. h3 {[%emt 0:09:10]} Bd5 {[%emt 0:09:48]} 24. Qe1 {[%emt 0:04:32]} Rc8 {[%emt 0:04:12]} 25. Qd2 {[%emt 0:03:54]} Rc6 {[%emt 0:07:48]} 26. g4 {[%emt 0:03:16]} Ne4 {[%emt 0:06:52]} 27. Qf4+ {[%emt 0:18:23]} Kg8 {[%emt 0:01:36]} 28. Bxg7 {[%emt 0:03:33]} Ng5 {[%emt 0:05:44]} 29. Kf1 {[%emt 0:02:42]} Bc4+ {[%emt 0:00:56]} 30. Ke1 {[%emt 0:02:57]} Kxg7 {[%emt 0:00:37]} 31. d5 {[%emt 0:04:13]} Rc8 {[%emt 0:02:51]} 32. b3 {[%emt 0:06:33]} Re8 {[%emt 0:03:35]} 33. Kd2 {[%emt 0:08:15]} Bxd5 {[%emt 0:00:17]} 34. h4 {[%emt 0:03:12]} Nf3+ {[%emt 0:00:34]} 35. Kc2 {[%emt 0:00:48]} Bf6 {[%emt 0:00:50]} 36. Qc7+ {[%emt 0:00:45]} Re7 {[%emt 0:00:11]} 37. Qc5 {[%emt 0:03:41]} Re2+ {[%emt 0:00:32]} 38. Kd3 {[%emt 0:00:32]} Rd2+ {[%emt 0:00:14]} 39. Ke3 {[%emt 0:00:18]} Bd4+ {[%emt 0:00:09]} 0-1

[Event "58th Akiba Rubinstein B 2022"]
[Site "Polanica-Zdroj"]
[Date "2022.08.15"]
[Round "3.10"]
[White "Terkiewicz, Bruno"]
[Black "Owoc, Jakub"]
[Result "1/2-1/2"]
[ECO "E91"]
[WhiteElo "1473"]
[BlackElo "1756"]
[Annotator "NA RC"]
[PlyCount "64"]
[EventDate "2022.08.13"]
[EventCountry "POL"]
[SourceTitle "playchess.com"]
[Source "ChessBase"]
[SourceQuality "1"]
[TimeControl "40/5400+30:1800+30"]

1. d4 {[%emt 0:00:03]} Nf6 {[%emt 0:00:06]} 2. c4 {[%emt 0:00:02]} g6 {[%emt 0:00:08]} 3. Nc3 {[%emt 0:00:03]} Bg7 {[%emt 0:00:07]} 4. e4 {[%emt 0:00:06]} d6 {[%emt 0:00:06]} 5. Be2 {[%emt 0:00:06]} O-O {[%emt 0:00:08]} 6. Nf3 {[%emt 0:00:02]} Nbd7 {[%emt 0:00:08]} 7. O-O {[%emt 0:00:19]} e5 {[%emt 0:00:05]} 8. Be3 {[%emt 0:00:07]} Qe7 {[%emt 0:00:16]} 9. d5 {[%emt 0:11:24]} c5 {[%emt 0:06:16]} 10. Ne1 {[%emt 0:01:28]} Kh8 {[%emt 0:01:32]} 11. g4 {[%emt 0:08:05]} Ng8 12. Kh1 {[%emt 0:00:11]} f5 {[%emt 0:04:02]} 13. gxf5 {[%emt 0:01:02]} gxf5 {[%emt 0:00:06]} 14. exf5 {[%emt 0:02:19]} Ndf6 {[%emt 0:01:06]} 15. Rg1 {[%emt 0:02:13]} Bxf5 {[%emt 0:02:11]} 16. Ng2 {[%emt 0:06:46]} Nh6 {[%emt 0:19:11]} 17. Nh4 {[%emt 0:04:22]} Bd7 {[%emt 0:00:09]} 18. Bg5 {[%emt 0:03:38]} Qf7 {[%emt 0:09:01]} 19. Qd2 {[%emt 0:18:39]} Nf5 {[%emt 0:01:22]} 20. Nxf5 {[%emt 0:04:25]} Bxf5 {[%emt 0:00:09]} 21. Qe3 {[%emt 0:01:45]} Bg6 {[%emt 0:03:55]} 22. Rg2 {[%emt 0:07:37]} Rae8 {[%emt 0:03:31]} 23. Bxf6 {[%emt 0:01:26]} Qxf6 {[%emt 0:00:18]} 24. Ne4 {[%emt 0:00:16]} Bxe4 {[%emt 0:02:47]} 25. Qxe4 {[%emt 0:00:04]} Qh6 {[%emt 0:01:19]} 26. Rag1 {[%emt 0:01:37]} Rf4 {[%emt 0:01:01]} 27. Qe3 {[%emt 0:00:31]} Re7 {[%emt 0:00:21]} 28. b3 {[%emt 0:03:32]} Ref7 {[%emt 0:01:54]} 29. Bd3 {[%emt 0:03:36]} Qh4 {[%emt 0:00:37]} 30. f3 {[%emt 0:04:52]} Qh5 {[%emt 0:04:28]} 31. Be4 {[%emt 0:00:24]} Qh4 {[%emt 0:06:30]} 32. Qd2 {[%emt 0:00:54]} Qd8 {[%emt 0:00:29]} 1/2-1/2